bitfinex/quotes_ETHUSD_20241124
["timestamp","ask_amount","ask_price","bid_price","bid_amount"]
[1732454764364,2.99703,3336.7,3336.2,3.743287]
[1732454764586,2.99703,3336.7,3336.1,4.79848]
[1732454764766,2.99703,3336.7,3336.2,4.79844]
[1732454765173,2.99703,3336.7,3336.2,1.79844]
[1732454765361,2.99703,3336.7,3336.0,5.63433]
[1732454765362,2.99706,3336.6,3336.0,5.63433]
[1732454765698,2.99743,3336.2,3335.7,2.63452]
[1732454766008,2.99738,3336.3,3335.7,2.63452]
[1732454766175,2.99738,3336.3,3335.7,2.897972]
[1732454766359,2.99738,3336.3,3335.7,4.696652]
[1732454766567,2.99709,3336.6,3335.7,2.897932]
[1732454766768,2.99734,3336.3,3335.8,3.0]
[1732454767899,0.8534,3336.2,3335.5,1.79879]
[1732454768105,0.8534,3336.2,3335.6,5.363819]
[1732454768305,0.8534,3336.2,3335.7,4.7987]
[1732454768808,0.8534,3336.2,3335.7,1.79868]
[1732454769174,0.05620784,3336.1,3335.7,1.79871]
[1732454769910,0.05620784,3336.1,3335.6,3.565089]
[1732454770118,0.05620784,3336.1,3335.9,1.79861]
[1732454770277,0.05620784,3336.1,3335.7,1.79868]
[1732454770483,7.79365313,3336.4,3335.8,1.79862]
[1732454770680,0.05563133,3336.0,3335.8,1.79862]
[1732454771013,7.79365313,3336.4,3335.8,2.458355]
[1732454771175,0.05563133,3335.9,3335.8,2.458355]
[1732454771377,7.79365313,3336.4,3335.8,2.458355]
[1732454771578,0.05563133,3335.9,3335.8,1.79862]
[1732454771806,7.79370313,3336.4,3335.8,1.79862]
[1732454772015,0.05563133,3335.9,3335.8,1.79862]
[1732454772222,7.79370313,3336.4,3335.8,1.79862]
[1732454772383,0.05563133,3335.9,3335.8,2.158358]
[1732454772754,4.79641313,3336.4,3336.1,1.79846]
[1732454773089,4.79641313,3336.4,3336.2,1.79843]
[1732454773584,4.79641313,3336.4,3336.1,1.79846]
[1732454773979,4.79641313,3336.4,3336.2,1.79845]
[1732454774215,4.79641313,3336.4,3336.3,1.79839]
[1732454774702,4.79641313,3336.4,3336.0,4.79852]
[1732454774902,0.8039,3336.9,3336.3,1.79839]
[1732454775238,0.8039,3336.9,3336.5,1.79828]
[1732454775518,2.99677,3337.0,3336.5,1.79828]
[1732454775675,8.59683313,3337.2,3336.5,1.79828]
[1732454775875,8.59683313,3337.2,3336.7,1.79816]
[1732454776291,9.20324189,3337.2,3336.7,1.79816]
[1732454776473,9.20324189,3337.2,3336.5,2.61798]
[1732454776474,9.20324189,3337.2,3336.6,1.79823]
[1732454776678,6.20672189,3337.2,3336.8,1.79809]
[1732454776876,6.20672189,3337.2,3336.6,5.1079671]
[1732454777120,6.20672189,3337.2,3336.7,4.79817]
[1732454777300,3.1439315,3337.9,3336.7,4.79817]
[1732454777301,3.8,3337.7,3337.1,1.79795]
[1732454777491,8.59641313,3337.7,3337.1,1.79795]
[1732454777815,9.47085659,3337.7,3337.1,1.79795]
[1732454778177,9.47088659,3337.7,3336.9,1.79804]
[1732454778377,9.47088659,3337.7,3336.3,1.79839]
[1732454778378,0.8039,3337.2,3336.8,1.79812]
[1732454779182,2.99636,3337.4,3336.8,1.79812]
[1732454779514,2.99636,3337.4,3336.8,1.79809]
[1732454779719,2.99644,3337.3,3336.6,3.0]
[1732454779882,2.99644,3337.3,3336.7,1.79814]
[1732454780717,2.99644,3337.3,3336.2,1.79842]
[1732454780718,0.679662,3337.3,3336.3,1.79835]
[1732454780890,3.1439515,3337.9,3336.4,1.7983]
[1732454780891,0.7908,3336.9,3336.4,1.7983]
[1732454781100,0.7908,3336.9,3336.2,0.8514]
[1732454781309,0.7908,3336.9,3336.5,1.79828]
[1732454781619,3.78759,3336.9,3336.4,1.79833]
[1732454781991,0.7908,3336.9,3336.5,1.79827]
[1732454782680,3.78764,3336.9,3336.3,3.0]
[1732454782881,3.78764,3336.9,3336.4,1.79834]
[1732454783383,2.99707,3336.6,3336.1,1.79849]
[1732454783582,4.79641313,3336.8,3336.1,1.79849]
[1732454783819,2.99708,3336.6,3336.1,1.79849]
[1732454783980,2.99708,3336.6,3336.0,1.79855]
[1732454784193,3.05344693,3336.5,3336.0,1.79855]
[1732454784512,0.05629693,3336.5,3336.2,1.79844]
[1732454784715,0.05629693,3336.5,3336.1,1.79849]
[1732454784893,2.99691,3336.8,3336.2,1.79841]
[1732454785229,0.7908,3336.9,3336.0,1.996371]
[1732454785391,2.99706,3336.6,3336.0,1.79853]
[1732454785593,2.99728,3336.4,3335.9,1.97847]
[1732454785938,2.99751,3336.1,3335.7,3.0]
[1732454786228,2.99767,3336.0,3335.4,1.79886]
[1732454786398,3.05373863,3336.0,3335.5,0.179886]
[1732454786598,3.05373863,3336.0,3335.4,1.79886]
[1732454787125,0.05606863,3336.0,3335.6,1.79876]
[1732454787849,3.05374863,3336.0,3335.4,1.79886]
[1732454788028,2.99769,3335.9,3335.3,3.0]
[1732454788214,2.99791,3335.7,3335.2,1.79897]
[1732454788422,0.8124,3336.0,3334.9,0.8476]
[1732454788620,2.99814,3335.4,3334.8,1.7992]
[1732454788822,0.05606863,3335.3,3334.9,1.79913]
[1732454789723,0.05606863,3335.3,3334.8,1.79916]
[1732454790427,0.05606863,3335.3,3334.9,1.79911]
[1732454790602,2.99815,3335.4,3334.9,1.79911]
[1732454790807,0.05606863,3335.3,3334.9,1.79911]
[1732454791030,0.05606863,3335.3,3334.8,4.7992]
[1732454791231,0.05606863,3335.3,3334.9,1.79914]
[1732454791432,0.05606863,3335.3,3334.5,4.79932]
[1732454791433,2.99834,3335.2,3334.5,4.79932]
[1732454791648,0.0553835,3335.1,3334.5,6.59864]
[1732454791947,0.0553835,3335.1,3334.5,4.79932]
[1732454792242,0.0553835,3335.1,3334.8,1.79918]
[1732454792442,4.79641313,3335.7,3335.2,1.79899]
[1732454792610,0.0553835,3335.6,3335.0,1.79908]
[1732454792809,0.8124,3335.4,3334.9,1.79913]
[1732454793012,0.0553835,3335.3,3334.7,1.79925]
[1732454793252,0.0553835,3335.3,3334.8,1.79917]
[1732454794612,0.0553835,3335.3,3334.9,1.79914]
[1732454795212,0.0553835,3335.3,3334.7,1.79922]
[1732454795516,0.35925096,3335.3,3334.7,1.79925]
[1732454795914,0.35925096,3335.3,3334.8,1.79919]
[1732454796257,3.0536635,3335.3,3334.7,4.79925]
[1732454796745,0.0553835,3335.3,3334.8,1.79918]
[1732454797120,0.0553835,3335.3,3334.9,1.79911]
[1732454797325,0.0553835,3335.3,3335.2,1.79899]
[1732454797735,4.79641313,3335.5,3335.4,1.79888]
[1732454798749,4.79641313,3335.5,3335.2,1.79899]
[1732454798953,0.8124,3335.8,3335.2,1.79899]
[1732454799131,0.05487244,3335.4,3335.2,1.79899]
[1732454799320,2.99789,3335.7,3335.2,1.79899]
[1732454799649,0.8124,3335.8,3335.2,1.79899]
[1732454799849,0.05487244,3335.7,3335.0,1.7991]
[1732454800150,3.05280244,3335.7,3335.0,1.79905]
[1732454800521,0.05487244,3335.7,3335.1,1.799]
[1732454800726,0.05487244,3335.7,3334.8,4.79916]
[1732454800727,2.99813,3335.5,3334.8,4.79916]
[1732454801020,2.99805,3335.5,3334.9,4.79915]
[1732454801235,0.05487244,3335.4,3335.0,1.79908]
[1732454801642,0.05487244,3335.4,3334.8,1.79916]
[1732454801841,3.05302244,3335.4,3334.8,1.79916]
[1732454802017,2.99823,3335.3,3334.8,1.79916]
[1732454802217,0.05500412,3335.2,3334.8,1.79916]
[1732454802438,2.99823,3335.3,3334.8,1.79916]
[1732454802657,0.05500412,3335.2,3334.8,1.79916]
[1732454802870,2.99823,3335.3,3334.8,1.79916]
[1732454803127,0.0549228,3335.2,3334.8,1.79916]
[1732454803525,2.99823,3335.3,3334.7,1.79923]
[1732454803731,0.0549228,3335.1,3334.7,1.79923]
[1732454803955,2.99823,3335.3,3334.8,1.79919]
[1732454804154,0.0549228,3335.0,3334.8,1.79919]
[1732454804331,2.99823,3335.3,3334.8,1.79919]
[1732454804847,0.05487632,3335.2,3334.9,1.79914]
[1732454805053,4.79641313,3335.4,3334.8,1.79916]
[1732454805248,0.05487632,3335.3,3334.8,1.79916]
[1732454806459,0.05487632,3335.3,3334.9,1.79913]
[1732454806670,0.05487632,3335.3,3334.6,3.0]
[1732454806671,0.05487632,3335.3,3334.7,1.79926]
[1732454806824,0.05487632,3335.3,3334.9,1.7991]
[1732454807019,0.05487632,3335.3,3335.0,1.79908]
[1732454807661,0.05487632,3335.3,3334.7,0.3846]
[1732454807869,0.05487632,3335.3,3334.7,2.18385]
[1732454808024,0.05487632,3335.3,3335.1,1.79901]
[1732454808224,0.05487632,3335.3,3335.2,1.79899]
[1732454808425,0.05489568,3335.3,3335.1,1.79901]
[1732454808845,0.8677,3335.6,3335.1,1.79901]
[1732454809058,0.05489568,3335.2,3335.1,1.79901]
[1732454809227,2.99811,3335.5,3334.9,1.79913]
[1732454809429,2.99811,3335.5,3334.7,2.18385]
[1732454809430,2.99805,3335.5,3334.7,2.18385]
[1732454809659,0.8677,3335.6,3334.8,1.79919]
[1732454809660,2.99819,3335.4,3334.8,1.79919]
[1732454809888,0.0549654,3335.4,3334.8,1.79916]
[1732454810161,3.86569,3335.6,3334.8,1.79916]
[1732454810362,0.0549654,3335.3,3334.5,0.87598555]
[1732454810527,0.0549654,3335.3,3334.9,1.79912]
[1732454810727,2.99812,3335.5,3334.9,1.79912]
[1732454810965,0.0549654,3335.2,3334.9,1.79912]
[1732454811258,2.99814,3335.4,3334.9,1.79912]
[1732454811878,0.0549654,3335.3,3334.9,1.79912]
[1732454812041,0.0549654,3335.3,3335.0,1.79905]
[1732454812360,0.0549654,3335.2,3334.8,1.7992]
[1732454812579,2.99827,3335.3,3334.6,1.79927]
[1732454812866,0.0549654,3335.1,3334.9,1.79912]
[1732454813181,0.0549654,3335.0,3334.9,1.79912]
[1732454813526,2.99814,3335.4,3334.9,1.79912]
[1732454813737,0.0549654,3335.0,3334.9,1.79912]
[1732454813937,2.99814,3335.4,3334.9,1.79912]
[1732454814151,0.0549654,3335.0,3334.9,1.79912]
[1732454814360,2.99814,3335.4,3334.8,1.79919]
[1732454814689,0.0549344,3335.0,3334.8,1.79919]
[1732454814985,2.99814,3335.4,3334.8,1.79919]
[1732454815172,0.0549344,3334.9,3334.8,1.79919]
[1732454815381,2.99814,3335.4,3334.8,1.79919]
[1732454815569,0.0549344,3334.9,3334.8,1.79919]
[1732454815751,2.99814,3335.4,3334.9,1.79915]
[1732454815952,4.25078734,3335.4,3334.9,1.79915]
[1732454816351,4.25078734,3335.4,3334.5,0.846]
[1732454816547,2.99826,3335.3,3334.7,3.59844]
[1732454816777,2.99841,3335.1,3334.5,2.64533]
[1732454817087,2.9985,3335.0,3334.5,1.79933]
[1732454817279,8.61040313,3335.2,3334.4,3.0]
[1732454817484,2.99842,3335.1,3334.4,3.0]
[1732454817782,2.99842,3335.1,3334.6,1.79929]
[1732454818944,2.99842,3335.1,3334.4,1.79942]
[1732454819144,5.99691,3335.1,3334.5,1.79936]
[1732454819367,4.15931231,3335.1,3334.5,1.79936]
[1732454819683,4.15931231,3335.1,3334.6,1.7993]
[1732454819883,2.99842,3335.1,3334.6,1.7993]
[1732454820086,2.99852,3335.0,3334.4,1.79937]
[1732454820394,2.99843,3335.1,3334.4,1.79937]
[1732454820587,2.99843,3335.1,3334.2,0.8101]
[1732454820588,2.99877,3334.7,3334.2,2.6096]
[1732454820776,2.99877,3334.7,3334.2,1.7995]
[1732454821088,3.85357,3334.6,3334.0,4.7996]
[1732454821300,2.99896,3334.5,3334.0,4.7996]
[1732454821449,3.85364,3334.6,3334.0,1.79962]
[1732454821653,0.8547,3334.6,3334.1,1.79955]
[1732454821857,0.8547,3334.6,3333.6,2.6355]
[1732454822161,3.85362,3334.6,3334.0,1.79963]
[1732454822360,2.999,3334.5,3333.9,1.79969]
[1732454822676,2.99909,3334.4,3333.9,1.79969]
[1732454823188,2.99909,3334.4,3333.8,1.79971]
[1732454823400,2.99913,3334.3,3333.7,4.79977]
[1732454823689,2.99913,3334.3,3333.8,1.79973]
[1732454824260,2.99913,3334.3,3333.7,4.79977]
[1732454825372,2.99913,3334.3,3333.7,6.59953]
[1732454825572,3.41472318,3334.5,3333.7,4.79976]
[1732454825791,2.99914,3334.3,3333.6,3.8357]
[1732454825993,2.99919,3334.3,3333.7,3.0]
[1732454826309,7.79560313,3334.3,3333.8,1.79973]
[1732454826793,4.79641313,3334.3,3333.8,1.79973]
[1732454826968,4.79641313,3334.3,3333.8,0.743526]
[1732454827174,4.79641313,3334.3,3334.2,1.79953]
[1732454828562,4.79641313,3334.3,3333.8,1.79974]
[1732454828563,5.66331313,3334.3,3333.8,1.79974]
[1732454829095,0.8669,3334.3,3333.8,1.79974]
[1732454829318,0.05428747,3334.2,3333.9,1.79964]
[1732454829606,0.8669,3334.3,3334.0,1.79963]
[1732454829827,0.0542526,3334.1,3333.9,1.79964]
[1732454830121,0.8669,3334.3,3333.9,1.79964]
[1732454830272,0.0542526,3334.0,3333.9,1.79964]
[1732454830472,0.05415185,3334.0,3333.9,1.79964]
[1732454830809,0.8669,3334.3,3333.8,1.79972]
[1732454831111,0.8669,3334.3,3333.4,4.79992]
[1732454831112,3.05355185,3334.0,3333.4,4.79992]
[1732454831281,2.9994,3334.0,3333.4,4.79992]
[1732454831487,0.05415185,3333.9,3333.4,4.79992]
[1732454831701,3.05369185,3333.9,3333.3,4.79998]
[1732454831898,0.8417,3333.8,3333.3,4.79998]
[1732454832191,0.0541751,3333.7,3333.3,1.79998]
[1732454832398,0.8417,3333.8,3333.5,1.79989]
[1732454832596,0.0541751,3333.6,3333.5,1.79989]
[1732454832799,0.8417,3333.8,3333.5,1.79989]
[1732454833104,0.0541751,3333.6,3333.5,1.79989]
[1732454833304,0.8417,3334.0,3333.6,4.79983]
[1732454833506,0.8417,3334.0,3333.6,1.79983]
[1732454833899,2.9995,3333.9,3333.3,4.79997]
[1732454834077,2.9995,3333.9,3333.4,1.79995]
[1732454834278,2.00535931,3334.0,3333.4,1.79991]
[1732454834479,0.8417,3334.0,3333.6,1.79982]
[1732454834771,0.8417,3334.0,3333.3,1.79999]
[1732454835007,4.79641313,3334.1,3334.0,1.79964]
[1732454835209,0.8417,3334.3,3334.2,1.79953]
[1732454835438,0.8417,3334.7,3333.9,4.79969]
[1732454835705,0.8417,3334.7,3334.4,1.79938]
[1732454835908,4.79641313,3335.3,3334.6,1.79931]
[1732454836209,0.8417,3335.4,3335.1,1.79904]
[1732454837132,0.8417,3335.4,3335.2,1.79896]
[1732454837918,0.8417,3335.4,3335.0,1.79909]
[1732454837919,0.8417,3335.4,3335.0,3.59814]
[1732454838092,0.8417,3335.4,3335.1,1.79902]
[1732454838306,0.8417,3335.4,3334.8,1.79917]
[1732454838502,1.70529931,3335.4,3334.8,1.79917]
[1732454838930,4.79641313,3335.5,3335.1,1.79904]
[1732454839226,7.79446313,3335.5,3335.0,1.79906]
[1732454839430,4.79641313,3335.5,3335.1,1.79904]
[1732454839636,4.79641313,3335.5,3334.9,1.79911]
[1732454839800,2.99814,3335.4,3334.7,1.79924]
[1732454839993,2.99823,3335.3,3334.7,1.79924]
[1732454840193,0.8417,3335.2,3334.7,1.79924]
[1732454840482,0.8417,3335.2,3334.9,1.79914]
[1732454840992,0.8417,3335.2,3334.7,1.79924]
[1732454841194,5.00353331,3335.2,3334.5,1.79934]
[1732454841425,5.00353331,3335.2,3334.6,1.79931]
[1732454841426,3.84008,3335.2,3334.6,1.79931]
[1732454841635,3.84008,3335.2,3334.6,4.79931]
[1732454842206,3.84002,3335.2,3334.6,3.0]
[1732454842408,3.84002,3335.2,3334.7,1.79925]
[1732454842964,0.8417,3335.2,3334.5,1.79934]
[1732454843243,2.99843,3335.1,3334.6,4.7993]
[1732454843443,0.05432614,3335.1,3334.6,4.7993]
[1732454843737,0.05432614,3335.1,3335.0,1.7991]
[1732454844308,0.8291,3335.4,3335.0,1.7991]
[1732454844540,0.8291,3335.4,3335.0,1.79907]
[1732454844744,0.05432614,3335.3,3335.2,1.79899]
[1732454845040,0.05432614,3335.3,3335.1,1.79903]
[1732454845544,0.05432614,3335.3,3335.0,1.79907]
[1732454845846,0.05432614,3335.3,3335.2,1.79899]
[1732454846056,5.58711313,3336.1,3336.0,1.79856]
[1732454846337,0.7907,3336.4,3336.0,1.79856]
[1732454846530,0.05432614,3336.1,3336.0,1.79856]
[1732454846839,0.7907,3336.4,3336.2,1.79844]
[1732454847045,0.7907,3336.7,3336.2,1.79844]
[1732454847345,0.85839531,3336.6,3336.2,1.79844]
[1732454847636,0.85839531,3336.6,3336.4,1.79833]
[1732454848237,4.79641313,3336.8,3336.5,1.79825]
[1732454848560,4.79641313,3336.7,3336.5,1.79825]
[1732454849375,4.79641313,3337.2,3336.9,1.79807]
[1732454849543,4.79641313,3337.2,3336.0,0.84567289]
[1732454849544,4.79641313,3337.2,3336.7,1.79817]
[1732454849738,4.79641313,3337.2,3337.0,1.79802]
[1732454849944,4.79641313,3337.5,3336.9,1.79805]
[1732454850243,4.79641313,3337.4,3336.7,1.79814]
[1732454850444,5.41419698,3337.4,3336.7,1.79814]
[1732454850653,8.41054698,3337.4,3336.8,1.79812]
[1732454850849,0.8410547,3337.3,3336.9,1.79806]
[1732454852745,0.8410547,3337.3,3337.0,1.79801]
[1732454852942,4.79641313,3337.4,3336.9,1.79806]
[1732454853146,0.7907,3337.7,3336.9,1.79806]
[1732454853147,4.79641313,3337.3,3337.1,1.79796]
[1732454854484,4.79641313,3337.3,3337.2,1.79791]
[1732454856200,4.79641313,3337.6,3337.3,1.79781]
[1732454856566,4.79641313,3337.6,3337.4,1.79779]
[1732454856766,4.79641313,3337.6,3337.2,1.79791]
[1732454857006,5.66953059,3337.6,3337.0,1.79801]
[1732454857171,2.9964,3337.4,3336.8,1.79811]
[1732454857377,2.9967,3337.0,3336.4,1.79832]
[1732454857596,0.8339,3337.2,3336.7,1.79813]
[1732454857776,3.83042,3337.2,3336.7,1.79813]
[1732454857975,0.8339,3337.2,3336.7,1.79813]
[1732454858267,0.8339,3337.2,3336.8,1.79808]
[1732454858995,0.05608023,3337.1,3336.9,1.79804]
[1732454859170,0.05608023,3337.1,3337.0,1.79802]
[1732454859581,4.79641313,3337.4,3337.0,1.79802]
[1732454859789,0.05608023,3337.1,3337.0,1.79802]
[1732454859989,4.79641313,3337.4,3337.0,1.79802]
[1732454860305,0.05608023,3337.1,3337.0,1.79802]
[1732454860461,4.79641313,3337.4,3336.9,1.79806]
[1732454860462,5.35944444,3337.4,3336.9,1.79806]
[1732454860663,0.056146,3337.1,3336.9,1.79806]
[1732454860865,4.79641313,3337.4,3337.0,1.79799]
[1732454861406,4.79641313,3337.4,3337.1,1.79796]
[1732454861902,4.79641313,3337.4,3337.3,1.79786]
[1732454862110,0.8339,3337.5,3337.3,1.79786]
[1732454862269,4.79641313,3337.7,3337.3,1.79786]
[1732454862775,4.79641313,3337.7,3337.4,1.7978]
[1732454863188,4.79641313,3337.7,3337.1,0.8418]
[1732454863388,4.79641313,3337.7,3337.4,1.79777]
[1732454863932,4.79641313,3337.7,3337.6,1.79769]
[1732454864073,0.1480215,3337.9,3337.7,1.79761]
[1732454864679,0.1480215,3337.9,3337.5,1.79774]
[1732454865181,0.1480215,3337.9,3337.7,1.79761]
[1732454865701,0.1480215,3337.9,3337.8,1.79759]
[1732454866218,2.99706,3336.6,3335.4,4.84455799]
[1732454866373,5.64503189,3336.6,3336.1,2.4253312]
[1732454866577,2.9973,3336.4,3336.1,2.4253312]
[1732454866775,2.9973,3336.4,3335.5,1.79882]
[1732454866776,2.99742,3336.2,3335.5,1.79882]
[1732454866997,2.99753,3336.1,3335.3,1.79893]
[1732454867317,2.99742,3336.2,3335.3,1.79891]
[1732454867490,3.61164915,3336.2,3335.3,1.79891]
[1732454867687,0.61422915,3336.2,3335.4,1.79885]
[1732454868007,0.61422915,3336.2,3335.5,1.79882]
[1732454868008,3.61165915,3336.2,3335.5,1.79882]
[1732454868222,0.61422915,3336.2,3335.5,1.79882]
[1732454868407,3.61164915,3336.2,3335.5,1.79882]
[1732454868712,3.61164915,3336.2,3335.6,1.79877]
[1732454868915,4.19642989,3336.3,3335.6,1.79877]
[1732454868916,4.19642989,3336.3,3335.7,1.79869]
[1732454869079,4.19642989,3336.3,3335.6,1.79877]
[1732454869080,4.19642989,3336.3,3335.8,1.79866]
[1732454870315,5.9951,3336.2,3335.8,1.79866]
[1732454870478,5.9951,3336.2,3335.6,1.79877]
[1732454870679,5.9951,3336.2,3335.7,1.79872]
[1732454871079,10.19152989,3336.2,3335.8,1.79865]
[1732454871488,10.19152989,3336.2,3336.1,1.7985]
[1732454871692,10.19152989,3336.2,3336.0,1.79854]
[1732454872091,10.19152989,3336.2,3336.0,1.79852]
[1732454872684,10.19152989,3336.2,3336.1,1.7985]
[1732454873585,5.9951,3336.2,3336.1,2.795272]
[1732454873908,6.05077389,3336.2,3336.1,2.795272]
[1732454877229,6.05077389,3336.2,3336.1,3.584772]
[1732454879000,0.05567389,3336.2,3336.1,6.584772]
[1732454879202,4.19642989,3337.5,3336.3,0.7895]
[1732454879408,4.7907998,3337.6,3337.1,1.79796]
[1732454879631,4.19642989,3337.6,3337.2,1.79789]
[1732454879932,0.86429198,3337.5,3337.3,1.79785]
[1732454880090,4.19642989,3337.6,3337.1,3.59589]
[1732454880298,4.19642989,3337.6,3336.8,1.79812]
[1732454880498,4.19642989,3337.6,3336.3,0.7895]
[1732454880499,2.99658,3337.2,3336.6,1.79823]
[1732454880719,2.99649,3337.3,3336.7,1.79817]
[1732454880920,3.55130829,3337.3,3336.7,1.79814]
[1732454881235,3.55130829,3337.3,3336.8,1.79812]
[1732454881433,3.55130829,3337.3,3336.6,1.79819]
[1732454881599,0.49030613,3337.2,3336.8,1.79812]
[1732454881990,0.8465,3337.4,3336.4,0.57996944]
[1732454882194,0.8465,3337.4,3336.9,1.79804]
[1732454882419,0.8465,3337.4,3336.7,1.79815]
[1732454882634,1.35079299,3337.4,3336.9,1.79806]
[1732454882814,5.9931,3337.3,3337.0,1.79801]
[1732454882999,5.9931,3337.3,3336.9,1.79806]
[1732454883195,7.44675129,3337.3,3336.9,1.79806]
[1732454883806,5.9931,3337.3,3337.1,1.79795]
[1732454884333,5.9931,3337.3,3336.9,1.79805]
[1732454884537,5.9931,3337.3,3336.7,1.79816]
[1732454884538,5.9931,3337.3,3336.8,1.79811]
[1732454884840,7.37251079,3337.3,3336.8,1.79811]
[1732454885142,7.37251079,3337.3,3336.9,1.79806]
[1732454885697,7.37251079,3337.3,3336.4,0.55]
[1732454885853,2.99662,3337.1,3336.5,2.01708373]
[1732454886048,5.9931,3337.0,3336.5,1.79825]
[1732454886285,8.98986,3337.0,3336.4,1.79834]
[1732454886469,2.99679,3336.9,3336.4,1.79834]
[1732454886674,5.9931,3336.8,3336.4,1.79834]
[1732454888789,5.9931,3336.8,3336.5,1.79827]
[1732454889096,0.05639363,3336.7,3336.3,1.79835]
[1732454889260,5.9931,3336.6,3336.3,1.79835]
[1732454889655,0.05639363,3336.5,3336.4,1.79834]
[1732454889967,6.92309363,3336.5,3336.1,1.7985]
[1732454890160,0.99201136,3336.4,3336.1,1.7985]
[1732454890359,6.04933502,3336.3,3336.2,1.79845]
[1732454892162,6.04933502,3336.3,3336.2,2.60085]
[1732454892382,6.04933502,3336.3,3336.2,3.15085]
[1732454892586,6.04933502,3336.3,3336.2,3.645785]
[1732454893120,6.04933502,3336.3,3336.2,6.645785]
[1732454898469,6.04933502,3336.3,3336.2,4.79845]
[1732454901276,6.04933502,3336.3,3335.7,0.55]
[1732454901486,6.04933502,3336.3,3336.0,1.79851]
[1732454901804,7.04133552,3336.3,3335.8,1.79863]
[1732454902006,0.7967,3335.9,3335.0,1.7991]
[1732454902175,6.0491996,3335.8,3335.3,1.79888]
[1732454902372,6.0491996,3335.8,3335.4,1.79885]
[1732454902592,6.0491996,3335.8,3334.9,0.8559]
[1732454902593,7.19431989,3335.7,3335.1,1.79902]
[1732454902800,7.45320155,3335.8,3334.2,1.79952]
[1732454902801,2.99849,3335.1,3334.2,1.79951]
[1732454903002,10.18952989,3335.6,3334.2,1.79951]
[1732454903003,11.0420508,3335.0,3334.2,1.79949]
[1732454903302,14.0406108,3335.0,3334.2,1.79952]
[1732454903516,14.0406108,3335.0,3333.6,0.8559]
[1732454903517,11.0420508,3335.0,3334.6,1.7993]
[1732454903805,11.0420508,3335.0,3334.4,1.79941]
[1732454903806,11.0420508,3335.0,3334.5,1.79934]
[1732454904012,11.0420508,3335.0,3334.8,1.79918]
[1732454904207,11.0420508,3335.0,3334.6,1.7993]
[1732454904411,11.0420508,3335.0,3334.7,1.79925]
[1732454904822,11.0420508,3335.0,3334.8,1.79916]
[1732454905021,11.0420508,3335.0,3334.9,1.79915]
[1732454905320,6.04892091,3335.0,3334.9,1.79915]
[1732454908800,6.04892091,3335.0,3334.9,2.638911]
[1732454908801,6.03892091,3335.0,3334.9,2.638911]
[1732454909004,6.03892091,3335.0,3334.9,5.638911]
[1732454910664,6.03892091,3335.0,3334.9,6.188911]
[1732454911419,6.03892091,3335.0,3334.9,1.79915]
[1732454911877,5.9831,3335.0,3334.9,1.79915]
[1732454912081,6.03820866,3335.0,3334.9,1.79915]
[1732454913603,6.03820866,3335.0,3334.9,2.34915]
[1732454913806,6.03820866,3335.0,3334.9,6.20335]
[1732454914023,6.03820866,3335.0,3334.9,7.003606]
[1732454914593,6.03820866,3335.0,3334.9,4.79915]
[1732454914796,6.03820866,3335.0,3334.8,1.79919]
[1732454915294,6.03820866,3335.0,3334.8,1.79916]
[1732454915721,6.03820866,3335.0,3334.9,4.79915]
[1732454916957,6.03820866,3335.0,3334.9,1.79915]
[1732454917112,6.03820866,3335.0,3334.7,1.79922]
[1732454917514,6.03820866,3335.0,3334.8,3.0]
[1732454917709,6.03820866,3335.0,3334.8,4.7992]
[1732454917917,6.03820866,3335.0,3334.5,1.79934]
[1732454918127,6.03820866,3335.0,3334.5,1.79932]
[1732454918299,6.03820866,3335.0,3334.7,1.79922]
[1732454919038,6.03820866,3335.0,3334.8,1.79919]
[1732454919633,6.03820866,3335.0,3334.9,1.79915]
[1732454923133,11.09403855,3335.0,3334.0,1.79961]
[1732454923359,2.99884,3334.7,3333.5,2.64969]
[1732454923681,6.03792982,3334.6,3334.3,1.79947]
[1732454924043,6.03792982,3334.6,3333.6,0.264969]
[1732454924044,6.03792982,3334.6,3334.4,1.79939]
[1732454924385,6.03792982,3334.6,3334.5,1.79937]
[1732454924541,6.03792982,3334.6,3334.5,5.794225]
[1732454925882,6.03792982,3334.6,3334.4,1.79939]
[1732454926052,0.8322,3334.5,3334.3,1.79947]
[1732454926256,0.88507687,3334.5,3334.2,3.0]
[1732454926575,0.88507687,3334.5,3334.1,1.79956]
[1732454926777,0.88507687,3334.5,3334.0,4.7996]
[1732454926993,5.9831,3334.4,3334.1,1.79958]
[1732454927285,5.9831,3334.4,3334.3,1.79947]
[1732454927646,5.9831,3334.4,3334.2,3.0]
[1732454927868,5.9831,3334.4,3334.2,1.79952]
[1732454928067,5.9831,3334.4,3334.0,4.7996]
[1732454928389,5.9831,3334.4,3334.1,4.79955]
[1732454928683,5.9831,3334.4,3334.1,1.79955]
[1732454929043,5.9831,3334.4,3334.2,4.79951]
[1732454929248,5.9831,3334.4,3334.2,1.79951]
[1732454929476,5.9831,3334.4,3333.6,0.264969]
[1732454929477,2.99927,3334.2,3333.4,1.79996]
[1732454929653,2.99967,3333.7,3333.0,3.76576059]
[1732454929850,5.9831,3333.6,3333.1,1.80009]
[1732454930246,5.9831,3333.6,3333.2,1.80003]
[1732454930908,5.9831,3333.6,3333.4,1.79991]
[1732454931409,5.9831,3333.6,3333.5,1.79991]
[1732454931910,5.9831,3333.6,3333.2,1.80003]
[1732454932136,5.9831,3333.6,3333.3,1.8]
[1732454932284,5.9831,3333.6,3333.3,3.59997]
[1732454932481,5.9831,3333.6,3333.2,0.55]
[1732454932682,5.9831,3333.6,3333.4,1.79994]
[1732454932902,5.9831,3333.6,3333.5,1.79991]
[1732454933108,5.9831,3333.6,3333.2,2.35002]
[1732454933329,5.9831,3333.6,3333.3,1.79998]
[1732454933480,5.9831,3333.6,3333.3,4.79998]
[1732454933676,3.83213,3333.5,3332.9,1.80022]